[Event "Live Chess"]
[Site "Chess.com"]
[Date "2023.05.21"]
[Round "-"]
[White "yeetpizza74"]
[Black "Shepherds_Pie"]
[Result "0-1"]
[WhiteElo "495"]
[BlackElo "1946"]
[TimeControl "300"]
[EndTime "3:05:25 PDT"]
[Termination "Shepherds_Pie won by checkmate"]

1. e4 {[%clk 0:04:55.6]} 1... e6 {[%clk 0:04:58.7]} 2. d4 {[%clk 0:04:53.7]}
2... d5 {[%clk 0:04:57.7]} 3. e5 {[%clk 0:04:52.4]} 3... c5 {[%clk 0:04:56.5]}
4. c3 {[%clk 0:04:50.3]} 4... Nc6 {[%clk 0:04:55.6]} 5. Bf4 {[%clk 0:04:44.9]}
5... Qb6 {[%clk 0:04:54.1]} 6. b3 {[%clk 0:04:35.4]} 6... cxd4 {[%clk
0:04:52.3]} 7. cxd4 {[%clk 0:04:33.6]} 7... Qxd4 {[%clk 0:04:51.2]} 8. Bb5
{[%clk 0:04:23.6]} 8... Qxf4 {[%clk 0:04:48.1]} 9. Bxc6+ {[%clk 0:04:17.8]} 9...
bxc6 {[%clk 0:04:43.6]} 10. Ne2 {[%clk 0:04:15.9]} 10... Ba6 {[%clk 0:04:41.6]}
11. Nxf4 {[%clk 0:04:12.4]} 11... Be7 {[%clk 0:04:39.9]} 12. Nc3 {[%clk
0:04:08.8]} 12... Bb4 {[%clk 0:04:36.6]} 13. Rc1 {[%clk 0:04:03.3]} 13... c5
{[%clk 0:04:32.9]} 14. Nd3 {[%clk 0:03:52.3]} 14... Bxd3 {[%clk 0:04:28.3]} 15.
Qxd3 {[%clk 0:03:50.5]} 15... Rb8 {[%clk 0:04:26.2]} 16. O-O {[%clk 0:03:48.2]}
16... Ne7 {[%clk 0:04:24.5]} 17. Ra1 {[%clk 0:03:35.8]} 17... O-O {[%clk
0:04:21.2]} 18. a3 {[%clk 0:03:33.8]} 18... Ba5 {[%clk 0:04:18.9]} 19. b4 {[%clk
0:03:31.6]} 19... cxb4 {[%clk 0:04:16.6]} 20. axb4 {[%clk 0:03:29.7]} 20... Bxb4
{[%clk 0:04:14.6]} 21. Rab1 {[%clk 0:03:18.9]} 21... a5 {[%clk 0:04:11]} 22. Na2
{[%clk 0:03:15.1]} 22... Nc6 {[%clk 0:04:07.2]} 23. Nxb4 {[%clk 0:03:10]} 23...
axb4 {[%clk 0:04:04.4]} 24. Qc2 {[%clk 0:03:00.8]} 24... Rfc8 {[%clk 0:03:44.6]}
25. Qc5 {[%clk 0:02:53.4]} 25... Nxe5 {[%clk 0:03:40.2]} 26. Qd6 {[%clk
0:02:49.2]} 26... Nc4 {[%clk 0:03:35.8]} 27. Qe7 {[%clk 0:02:40.5]} 27... b3
{[%clk 0:03:32.2]} 28. Rfc1 {[%clk 0:02:35.6]} 28... b2 {[%clk 0:03:25.9]} 29.
Rc2 {[%clk 0:02:31.3]} 29... Na3 {[%clk 0:03:19.5]} 30. Qxa3 {[%clk 0:02:27.9]}
30... Rxc2 {[%clk 0:03:17.2]} 31. h3 {[%clk 0:02:20.2]} 31... h6 {[%clk
0:03:08.2]} 32. Qd3 {[%clk 0:02:02]} 32... Rc1+ {[%clk 0:03:02.4]} 33. Rxc1
{[%clk 0:01:58.6]} 33... bxc1=Q+ {[%clk 0:03:01.3]} 34. Kh2 {[%clk 0:01:56.3]}
34... Qf4+ {[%clk 0:02:59.9]} 35. g3 {[%clk 0:01:54.3]} 35... Qxf2+ {[%clk
0:02:58.6]} 36. Kh1 {[%clk 0:01:51.9]} 36... Rb2 {[%clk 0:02:57.3]} 37. Qf1
{[%clk 0:01:40]} 37... Qh2# {[%clk 0:02:55.7]} 0-1

[Event "Live Chess"]
[Site "Chess.com"]
[Date "2023.05.21"]
[Round "-"]
[White "chessfiction"]
[Black "Purple1szed"]
[Result "1-0"]
[WhiteElo "2319"]
[BlackElo "1828"]
[TimeControl "300"]
[EndTime "3:05:27 PDT"]
[Termination "chessfiction won by resignation"]

1. e4 {[%clk 0:04:56.3]} 1... e5 {[%clk 0:04:59]} 2. d4 {[%clk 0:04:55.6]} 2...
exd4 {[%clk 0:04:58]} 3. c3 {[%clk 0:04:55.5]} 3... dxc3 {[%clk 0:04:56.3]} 4.
Nxc3 {[%clk 0:04:55.4]} 4... Nc6 {[%clk 0:04:55.3]} 5. Nf3 {[%clk 0:04:55.3]}
5... Bb4 {[%clk 0:04:53.8]} 6. Bc4 {[%clk 0:04:54.7]} 6... Nf6 {[%clk
0:04:24.1]} 7. e5 {[%clk 0:04:52]} 7... d5 {[%clk 0:04:11.7]} 8. exf6 {[%clk
0:04:49.5]} 8... dxc4 {[%clk 0:04:11.1]} 9. Qe2+ {[%clk 0:04:45.9]} 9... Be6
{[%clk 0:04:04.5]} 10. fxg7 {[%clk 0:04:45.2]} 10... Rg8 {[%clk 0:04:03.5]} 11.
Bg5 {[%clk 0:04:44.1]} 11... Be7 {[%clk 0:03:58.1]} 12. Rd1 {[%clk 0:04:39.9]}
12... Qc8 {[%clk 0:03:53.3]} 13. Ne4 {[%clk 0:04:34.4]} 13... Rxg7 {[%clk
0:03:42.4]} 14. Bxe7 {[%clk 0:04:32.4]} 14... Kxe7 {[%clk 0:03:36.7]} 15. Nc5
{[%clk 0:04:23.4]} 15... b6 {[%clk 0:03:23.9]} 16. Ne4 {[%clk 0:04:19.3]} 16...
Qe8 {[%clk 0:03:11.8]} 17. O-O {[%clk 0:04:17.3]} 17... Rd8 {[%clk 0:03:02.7]}
18. Ng3 {[%clk 0:04:12.3]} 18... Kf8 {[%clk 0:02:43.7]} 19. Rxd8 {[%clk
0:04:07.7]} 19... Nxd8 {[%clk 0:02:42.3]} 20. Re1 {[%clk 0:04:03.4]} 20... Kg8
{[%clk 0:02:35.6]} 21. Nd4 {[%clk 0:04:00.7]} 21... Kf8 {[%clk 0:02:24.7]} 22.
Ngf5 {[%clk 0:03:56]} 22... Rg8 {[%clk 0:02:16.6]} 23. Qe3 {[%clk 0:03:52.6]}
23... Nc6 {[%clk 0:02:07.2]} 24. Qh6+ {[%clk 0:03:50.3]} 1-0

[Event "Live Chess"]
[Site "Chess.com"]
[Date "2023.05.21"]
[Round "-"]
[White "ItsNot_Jasper"]
[Black "AttackingSnowLeopard"]
[Result "1/2-1/2"]
[WhiteElo "1373"]
[BlackElo "2199"]
[TimeControl "300"]
[EndTime "3:05:39 PDT"]
[Termination "Game drawn by repetition"]

1. d4 {[%clk 0:04:58.6]} 1... d5 {[%clk 0:04:57.6]} 2. c4 {[%clk 0:04:57.4]}
2... c6 {[%clk 0:04:56.4]} 3. Nf3 {[%clk 0:04:53]} 3... Nf6 {[%clk 0:04:55.8]}
4. Nc3 {[%clk 0:04:46.4]} 4... Bf5 {[%clk 0:04:52.7]} 5. Qb3 {[%clk 0:04:41.5]}
5... Qb6 {[%clk 0:04:49.9]} 6. c5 {[%clk 0:04:39.6]} 6... Qxb3 {[%clk
0:04:45.6]} 7. axb3 {[%clk 0:04:39.5]} 7... Nbd7 {[%clk 0:04:44.6]} 8. b4 {[%clk
0:04:36.5]} 8... Ne4 {[%clk 0:04:42.4]} 9. e3 {[%clk 0:04:34.5]} 9... a6 {[%clk
0:04:39.9]} 10. Nxe4 {[%clk 0:04:23.3]} 10... Bxe4 {[%clk 0:04:38.6]} 11. Be2
{[%clk 0:04:17.6]} 11... Rc8 {[%clk 0:04:36.5]} 12. O-O {[%clk 0:04:15.1]} 12...
Bxf3 {[%clk 0:04:35.3]} 13. Bxf3 {[%clk 0:04:14.1]} 13... e5 {[%clk 0:04:34.9]}
14. Re1 {[%clk 0:03:49]} 14... Be7 {[%clk 0:04:32]} 15. Bd2 {[%clk 0:03:31.4]}
15... Bf6 {[%clk 0:04:28.9]} 16. e4 {[%clk 0:03:20.2]} 16... O-O {[%clk
0:03:55.5]} 17. exd5 {[%clk 0:03:12]} 17... exd4 {[%clk 0:03:54.2]} 18. dxc6
{[%clk 0:03:10.1]} 18... bxc6 {[%clk 0:03:54.1]} 19. Rxa6 {[%clk 0:03:06.3]}
19... Ne5 {[%clk 0:03:53.7]} 20. Rxe5 {[%clk 0:02:56.5]} 20... Bxe5 {[%clk
0:03:51.6]} 21. Bxc6 {[%clk 0:02:56.4]} 21... d3 {[%clk 0:03:45.8]} 22. b5
{[%clk 0:02:52.6]} 22... Bxb2 {[%clk 0:03:44.3]} 23. Be3 {[%clk 0:02:42.4]}
23... Rfd8 {[%clk 0:03:27.7]} 24. Bf3 {[%clk 0:02:34.7]} 24... Bd4 {[%clk
0:02:49.7]} 25. Bxd4 {[%clk 0:02:22.7]} 25... Rxd4 {[%clk 0:02:49.6]} 26. b6
{[%clk 0:02:22.5]} 26... d2 {[%clk 0:02:46.5]} 27. h3 {[%clk 0:02:17.7]} 27...
d1=Q+ {[%clk 0:02:41.9]} 28. Bxd1 {[%clk 0:02:16.2]} 28... Rxd1+ {[%clk
0:02:41.8]} 29. Kh2 {[%clk 0:02:15.9]} 29... Rb1 {[%clk 0:02:39.6]} 30. c6
{[%clk 0:02:13.5]} 30... Kf8 {[%clk 0:02:31.9]} 31. b7 {[%clk 0:02:10.1]} 31...
Rxc6 {[%clk 0:02:13.4]} 32. Rxc6 {[%clk 0:02:07.8]} 32... Rxb7 {[%clk
0:02:12.5]} 33. g4 {[%clk 0:02:07.1]} 33... Ke7 {[%clk 0:02:10.8]} 34. Kg3
{[%clk 0:02:06.4]} 34... f6 {[%clk 0:02:08.4]} 35. Rc3 {[%clk 0:02:05.8]} 35...
g5 {[%clk 0:02:07]} 36. Re3+ {[%clk 0:02:04.6]} 36... Kf7 {[%clk 0:02:06.2]} 37.
h4 {[%clk 0:02:03.6]} 37... Kg6 {[%clk 0:02:05.3]} 38. h5+ {[%clk 0:02:01.8]}
38... Kg7 {[%clk 0:02:04.8]} 39. f3 {[%clk 0:02:00.3]} 39... h6 {[%clk
0:02:04.2]} 40. Ra3 {[%clk 0:01:57.1]} 40... Rc7 {[%clk 0:02:02.4]} 41. Ra5
{[%clk 0:01:55.7]} 41... Rb7 {[%clk 0:02:01.6]} 42. Rc5 {[%clk 0:01:54.5]} 42...
Rd7 {[%clk 0:02:00.8]} 43. Rb5 {[%clk 0:01:53.1]} 43... Rf7 {[%clk 0:01:59.2]}
44. Rf5 {[%clk 0:01:51.7]} 44... Re7 {[%clk 0:01:55.3]} 45. Rd5 {[%clk
0:01:50.3]} 45... Re2 {[%clk 0:01:50.9]} 46. Rd7+ {[%clk 0:01:46.9]} 46... Kg8
{[%clk 0:01:50.6]} 47. Ra7 {[%clk 0:01:42.9]} 47... Rb2 {[%clk 0:01:47.8]} 48.
Ra8+ {[%clk 0:01:40.2]} 48... Kg7 {[%clk 0:01:46.2]} 49. Ra7+ {[%clk 0:01:39.1]}
49... Kg8 {[%clk 0:01:45.4]} 50. Ra8+ {[%clk 0:01:38.6]} 50... Kg7 {[%clk
0:01:44.8]} 51. Ra7+ {[%clk 0:01:38.3]} 51... Kg8 {[%clk 0:01:44.3]} 1/2-1/2

[Event "Live Chess"]
[Site "Chess.com"]
[Date "2023.05.21"]
[Round "-"]
[White "Biranidun"]
[Black "gmnorfolk"]
[Result "1-0"]
[WhiteElo "2540"]
[BlackElo "2121"]
[TimeControl "300"]
[EndTime "3:05:41 PDT"]
[Termination "Biranidun won by resignation"]

1. e4 {[%clk 0:04:59.1]} 1... e5 {[%clk 0:04:58]} 2. Nf3 {[%clk 0:04:58.1]} 2...
Nc6 {[%clk 0:04:56.2]} 3. Bc4 {[%clk 0:04:57.6]} 3... Nf6 {[%clk 0:04:54.9]} 4.
Ng5 {[%clk 0:04:56.8]} 4... d5 {[%clk 0:04:53.6]} 5. exd5 {[%clk 0:04:56.7]}
5... Na5 {[%clk 0:04:52.4]} 6. Bb5+ {[%clk 0:04:56.1]} 6... c6 {[%clk
0:04:51.4]} 7. dxc6 {[%clk 0:04:56]} 7... bxc6 {[%clk 0:04:50.3]} 8. Bd3 {[%clk
0:04:55.4]} 8... Nd5 {[%clk 0:04:49]} 9. Nf3 {[%clk 0:04:53.9]} 9... Nf4 {[%clk
0:04:38.3]} 10. Bf1 {[%clk 0:04:52.3]} 10... Qf6 {[%clk 0:04:26.4]} 11. Nc3
{[%clk 0:04:49.2]} 11... Bg4 {[%clk 0:04:18.2]} 12. d3 {[%clk 0:04:45.1]} 12...
h6 {[%clk 0:03:54.3]} 13. h3 {[%clk 0:04:43.8]} 13... Bh5 {[%clk 0:03:49.1]} 14.
Ne4 {[%clk 0:04:42.2]} 14... Qe7 {[%clk 0:03:42.5]} 15. Ng3 {[%clk 0:04:40.3]}
15... Bg6 {[%clk 0:03:39.4]} 16. Bd2 {[%clk 0:04:35]} 16... Nb7 {[%clk
0:03:32.3]} 17. Bc3 {[%clk 0:04:32.8]} 17... f6 {[%clk 0:03:28.9]} 18. Qd2
{[%clk 0:04:31.2]} 18... Qe6 {[%clk 0:03:18.5]} 19. Ne2 {[%clk 0:04:23.4]} 19...
Nd5 {[%clk 0:03:13.7]} 20. g3 {[%clk 0:04:20]} 20... Nc5 {[%clk 0:03:05.4]} 21.
Bg2 {[%clk 0:04:18.4]} 21... Nxc3 {[%clk 0:02:56.1]} 22. Nxc3 {[%clk 0:04:17.4]}
22... e4 {[%clk 0:02:45.3]} 23. Nd4 {[%clk 0:04:13]} 23... Qd7 {[%clk
0:02:27.8]} 24. dxe4 {[%clk 0:04:10.9]} 24... O-O-O {[%clk 0:02:16.3]} 25. O-O-O
{[%clk 0:04:09.5]} 25... Be7 {[%clk 0:02:02.7]} 26. Nb3 {[%clk 0:04:08]} 26...
Qc7 {[%clk 0:01:34.1]} 27. Qe3 {[%clk 0:04:03.9]} 27... Nxb3+ {[%clk 0:01:30.6]}
28. axb3 {[%clk 0:04:03.8]} 28... Qa5 {[%clk 0:01:27.2]} 29. Kb1 {[%clk
0:04:02.4]} 29... Bc5 {[%clk 0:01:24.4]} 30. Qe2 {[%clk 0:04:00.2]} 30... Bf7
{[%clk 0:01:12.5]} 31. Qg4+ {[%clk 0:03:51.7]} 31... Kb8 {[%clk 0:01:00.3]} 32.
Qxg7 {[%clk 0:03:50.5]} 32... Rhf8 {[%clk 0:00:52.1]} 33. Rxd8+ {[%clk
0:03:45.9]} 33... Qxd8 {[%clk 0:00:48.9]} 34. Rd1 {[%clk 0:03:45]} 34... Qe7
{[%clk 0:00:46.7]} 35. Qxh6 {[%clk 0:03:44.2]} 35... Bxf2 {[%clk 0:00:44.7]} 36.
Qf4+ {[%clk 0:03:43.4]} 1-0

[Event "Live Chess"]
[Site "Chess.com"]
[Date "2023.05.21"]
[Round "-"]
[White "wot-not"]
[Black "PetorPrydatko"]
[Result "1-0"]
[WhiteElo "1540"]
[BlackElo "354"]
[TimeControl "300"]
[EndTime "3:05:45 PDT"]
[Termination "wot-not won by resignation"]

1. e4 {[%clk 0:04:57.1]} 1... d5 {[%clk 0:04:53.3]} 2. e5 {[%clk 0:04:55.8]}
2... e6 {[%clk 0:04:50.7]} 3. f4 {[%clk 0:04:55.4]} 3... Bc5 {[%clk 0:04:37.5]}
4. Nf3 {[%clk 0:04:55.1]} 4... f5 {[%clk 0:04:29.6]} 5. d4 {[%clk 0:04:54.2]}
5... Bb4+ {[%clk 0:04:23.4]} 6. c3 {[%clk 0:04:52.8]} 6... Ba5 {[%clk
0:04:19.1]} 7. Bd3 {[%clk 0:04:51.6]} 7... Nh6 {[%clk 0:04:12.5]} 8. Nbd2 {[%clk
0:04:47.7]} 8... O-O {[%clk 0:04:10.1]} 9. Nb3 {[%clk 0:04:46.8]} 9... g6 {[%clk
0:03:40.9]} 10. Nxa5 {[%clk 0:04:42.1]} 10... b6 {[%clk 0:03:37.3]} 11. Nb3
{[%clk 0:04:39.1]} 11... b5 {[%clk 0:03:26.1]} 12. Be3 {[%clk 0:04:37.4]} 12...
Nc6 {[%clk 0:03:06.8]} 13. Bxb5 {[%clk 0:04:34.6]} 13... Qd7 {[%clk 0:02:58.6]}
14. Ng5 {[%clk 0:04:23.1]} 14... Bb7 {[%clk 0:02:39.2]} 15. h3 {[%clk 0:04:19]}
15... Rae8 {[%clk 0:02:34.7]} 16. Nc5 {[%clk 0:04:07.9]} 16... Qd8 {[%clk
0:02:19.4]} 17. Nxb7 {[%clk 0:04:03.6]} 17... Qb8 {[%clk 0:02:16.7]} 18. Bxc6
{[%clk 0:04:02.6]} 18... Qd8 {[%clk 0:02:04.7]} 19. Nxd8 {[%clk 0:03:59.6]}
19... Rxd8 {[%clk 0:02:03.1]} 20. Nxe6 {[%clk 0:03:58.3]} 20... Rd6 {[%clk
0:02:01]} 21. Nxf8 {[%clk 0:03:50.2]} 21... Kxf8 {[%clk 0:01:55.8]} 22. Ba4
{[%clk 0:03:43.7]} 22... Ra6 {[%clk 0:01:53.2]} 23. Bf2 {[%clk 0:03:36.8]} 23...
Nf7 {[%clk 0:01:40.4]} 24. Bh4 {[%clk 0:03:34.3]} 24... Nd6 {[%clk 0:01:27.4]}
25. exd6 {[%clk 0:03:32.8]} 25... cxd6 {[%clk 0:01:26.3]} 26. O-O {[%clk
0:03:24.9]} 1-0

[Event "Live Chess"]
[Site "Chess.com"]
[Date "2023.05.21"]
[Round "-"]
[White "BJAW87"]
[Black "Pandreq"]
[Result "1-0"]
[WhiteElo "1438"]
[BlackElo "1230"]
[TimeControl "300"]
[EndTime "3:05:48 PDT"]
[Termination "BJAW87 won on time"]

1. e4 {[%clk 0:04:59.5]} 1... Nf6 {[%clk 0:04:58.4]} 2. e5 {[%clk 0:04:58.7]}
2... Nd5 {[%clk 0:04:57.1]} 3. d4 {[%clk 0:04:58.5]} 3... d6 {[%clk 0:04:55.5]}
4. Nf3 {[%clk 0:04:58]} 4... Nc6 {[%clk 0:04:53.4]} 5. Bb5 {[%clk 0:04:55.8]}
5... Bd7 {[%clk 0:04:50.7]} 6. Bxc6 {[%clk 0:04:49.5]} 6... Bxc6 {[%clk
0:04:49.2]} 7. c3 {[%clk 0:04:48.4]} 7... g6 {[%clk 0:04:44.4]} 8. O-O {[%clk
0:04:47.1]} 8... Bg7 {[%clk 0:04:42.7]} 9. Bg5 {[%clk 0:04:43.2]} 9... O-O
{[%clk 0:04:38.8]} 10. Nbd2 {[%clk 0:04:40.2]} 10... f6 {[%clk 0:04:27.5]} 11.
exf6 {[%clk 0:04:38]} 11... exf6 {[%clk 0:04:24.2]} 12. Bh4 {[%clk 0:04:37.1]}
12... Nf4 {[%clk 0:04:06.9]} 13. Qc2 {[%clk 0:04:06]} 13... Ne2+ {[%clk
0:03:43.7]} 14. Kh1 {[%clk 0:04:02.4]} 14... Bh6 {[%clk 0:03:34.2]} 15. Ne4
{[%clk 0:03:47.7]} 15... Nf4 {[%clk 0:02:59.9]} 16. Rae1 {[%clk 0:03:00.2]}
16... Bxe4 {[%clk 0:02:50.3]} 17. Qxe4 {[%clk 0:02:58.9]} 17... f5 {[%clk
0:02:41.5]} 18. Qxb7 {[%clk 0:02:37.4]} 18... Qb8 {[%clk 0:02:24.8]} 19. Qxb8
{[%clk 0:02:16.1]} 19... Raxb8 {[%clk 0:02:24.7]} 20. b3 {[%clk 0:02:14.2]}
20... Nd3 {[%clk 0:02:19.1]} 21. Re7 {[%clk 0:02:11.1]} 21... g5 {[%clk
0:02:09.1]} 22. Nxg5 {[%clk 0:02:06.4]} 22... Bxg5 {[%clk 0:01:57.4]} 23. Bxg5
{[%clk 0:02:05.3]} 23... c5 {[%clk 0:01:49]} 24. dxc5 {[%clk 0:01:59]} 24...
Nxc5 {[%clk 0:01:41.7]} 25. Rxa7 {[%clk 0:01:54.7]} 25... Ne4 {[%clk 0:01:40.4]}
26. Be3 {[%clk 0:01:43.9]} 26... f4 {[%clk 0:01:36.4]} 27. Bd4 {[%clk
0:01:41.8]} 27... Rf7 {[%clk 0:01:26.4]} 28. Rxf7 {[%clk 0:01:38.7]} 28... Kxf7
{[%clk 0:01:25.6]} 29. Kg1 {[%clk 0:01:33]} 29... d5 {[%clk 0:01:20.4]} 30. f3
{[%clk 0:01:27.4]} 30... Nd6 {[%clk 0:01:05.4]} 31. g3 {[%clk 0:01:22.6]} 31...
Rg8 {[%clk 0:01:02]} 32. g4 {[%clk 0:01:19]} 32... h5 {[%clk 0:00:59.8]} 33. h3
{[%clk 0:01:17.2]} 33... hxg4 {[%clk 0:00:51.2]} 34. fxg4 {[%clk 0:01:17.1]}
34... Nf5 {[%clk 0:00:48.4]} 35. Rxf4 {[%clk 0:01:14.8]} 35... Ke6 {[%clk
0:00:36.3]} 36. Kf2 {[%clk 0:01:08.3]} 36... Nh4 {[%clk 0:00:25.3]} 37. Kg3
{[%clk 0:01:00.2]} 37... Ng6 {[%clk 0:00:23.7]} 38. Rf6+ {[%clk 0:00:56.1]}
38... Kd7 {[%clk 0:00:21.4]} 39. h4 {[%clk 0:00:49.2]} 39... Ne7 {[%clk
0:00:16.6]} 40. g5 {[%clk 0:00:44.9]} 40... Nc6 {[%clk 0:00:12.4]} 41. Kg4
{[%clk 0:00:38.3]} 41... Re8 {[%clk 0:00:09.1]} 42. Rf7+ {[%clk 0:00:35.8]}
42... Re7 {[%clk 0:00:07.7]} 43. Rxe7+ {[%clk 0:00:35.3]} 43... Nxe7 {[%clk
0:00:07.6]} 44. h5 {[%clk 0:00:33.8]} 44... Ke6 {[%clk 0:00:06]} 45. g6 {[%clk
0:00:31.9]} 45... Ng8 {[%clk 0:00:04]} 46. Kg5 {[%clk 0:00:30.5]} 46... Kd6
{[%clk 0:00:01]} 47. h6 {[%clk 0:00:29.8]} 1-0

[Event "Live Chess"]
[Site "Chess.com"]
[Date "2023.05.21"]
[Round "-"]
[White "lateforthesky"]
[Black "omisoc"]
[Result "0-1"]
[WhiteElo "2122"]
[BlackElo "2178"]
[TimeControl "300"]
[EndTime "3:05:52 PDT"]
[Termination "omisoc won by resignation"]

1. e4 {[%clk 0:04:52.8]} 1... c5 {[%clk 0:04:56.5]} 2. Nf3 {[%clk 0:04:51.4]}
2... d6 {[%clk 0:04:54.4]} 3. Bb5+ {[%clk 0:04:49.9]} 3... Bd7 {[%clk
0:04:51.4]} 4. Bxd7+ {[%clk 0:04:47.1]} 4... Qxd7 {[%clk 0:04:50.2]} 5. O-O
{[%clk 0:04:41.6]} 5... Nc6 {[%clk 0:04:46.2]} 6. c3 {[%clk 0:04:39.8]} 6... Nf6
{[%clk 0:04:40.8]} 7. Qe2 {[%clk 0:04:38.7]} 7... e6 {[%clk 0:04:36.6]} 8. Rd1
{[%clk 0:04:32.2]} 8... Be7 {[%clk 0:04:32.8]} 9. d4 {[%clk 0:04:31.3]} 9...
cxd4 {[%clk 0:04:30.9]} 10. cxd4 {[%clk 0:04:30.2]} 10... d5 {[%clk 0:04:30.1]}
11. e5 {[%clk 0:04:23.8]} 11... Ne4 {[%clk 0:04:28.5]} 12. Nc3 {[%clk
0:04:22.8]} 12... Nxc3 {[%clk 0:04:24.7]} 13. bxc3 {[%clk 0:04:21.4]} 13... O-O
{[%clk 0:04:23.4]} 14. Bg5 {[%clk 0:04:16.4]} 14... Rac8 {[%clk 0:04:13.5]} 15.
Rd3 {[%clk 0:04:10.4]} 15... Rc7 {[%clk 0:04:08.6]} 16. h4 {[%clk 0:04:05.1]}
16... Rfc8 {[%clk 0:04:06.8]} 17. h5 {[%clk 0:03:38.5]} 17... Bxg5 {[%clk
0:03:53]} 18. Nxg5 {[%clk 0:03:36.7]} 18... h6 {[%clk 0:03:44.4]} 19. Nh3 {[%clk
0:03:31]} 19... Qe7 {[%clk 0:03:27]} 20. Qg4 {[%clk 0:03:17.6]} 20... Nd8 {[%clk
0:03:17.2]} 21. Rg3 {[%clk 0:03:13.5]} 21... Qf8 {[%clk 0:03:14.6]} 22. Rc1
{[%clk 0:02:59.9]} 22... b5 {[%clk 0:03:10.4]} 23. a3 {[%clk 0:02:58.4]} 23...
a5 {[%clk 0:03:08.4]} 24. Qf4 {[%clk 0:02:57.4]} 24... Kh8 {[%clk 0:03:05.1]}
25. Rb1 {[%clk 0:02:33.1]} 25... Qxa3 {[%clk 0:02:38.3]} 26. Rxb5 {[%clk
0:02:08.8]} 26... Rxc3 {[%clk 0:02:15.7]} 27. Rxc3 {[%clk 0:01:55]} 27... Qxc3
{[%clk 0:02:12.6]} 28. Qh4 {[%clk 0:01:35.5]} 28... a4 {[%clk 0:02:04.8]} 29.
Rc5 {[%clk 0:01:26.2]} 29... Qe1+ {[%clk 0:01:15.5]} 30. Kh2 {[%clk 0:01:22.1]}
30... Ra8 {[%clk 0:01:11.7]} 31. Nf4 {[%clk 0:00:59.3]} 31... a3 {[%clk
0:00:56.3]} 32. Qe7 {[%clk 0:00:55.2]} 32... Qe4 {[%clk 0:00:43.6]} 33. Qe8+
{[%clk 0:00:47.9]} 33... Kh7 {[%clk 0:00:42.3]} 34. g3 {[%clk 0:00:31]} 34... a2
{[%clk 0:00:41.2]} 35. Ra5 {[%clk 0:00:18.7]} 35... Rxa5 {[%clk 0:00:34.4]} 36.
Qxd8 {[%clk 0:00:17.4]} 36... a1=Q {[%clk 0:00:29]} 0-1

[Event "Live Chess"]
[Site "Chess.com"]
[Date "2023.05.21"]
[Round "-"]
[White "amazinggoalkeeper"]
[Black "zdanevych"]
[Result "0-1"]
[WhiteElo "507"]
[BlackElo "1540"]
[TimeControl "300"]
[EndTime "3:06:11 PDT"]
[Termination "zdanevych won by resignation"]

1. e4 {[%clk 0:04:59.2]} 1... d5 {[%clk 0:04:58.7]} 2. e5 {[%clk 0:04:57.7]}
2... c5 {[%clk 0:04:57.7]} 3. c4 {[%clk 0:04:54.5]} 3... d4 {[%clk 0:04:56.3]}
4. d3 {[%clk 0:04:51.6]} 4... Nc6 {[%clk 0:04:55.3]} 5. Bf4 {[%clk 0:04:50.3]}
5... Qb6 {[%clk 0:04:44.8]} 6. Qc2 {[%clk 0:04:46.3]} 6... Bf5 {[%clk 0:04:38]}
7. h3 {[%clk 0:04:38.9]} 7... e6 {[%clk 0:04:34.2]} 8. g4 {[%clk 0:04:32.9]}
8... Bg6 {[%clk 0:04:32.3]} 9. h4 {[%clk 0:04:31.5]} 9... h6 {[%clk 0:04:29]}
10. h5 {[%clk 0:04:30.6]} 10... Bh7 {[%clk 0:04:27.9]} 11. Nf3 {[%clk
0:04:26.6]} 11... Na5 {[%clk 0:04:26.3]} 12. g5 {[%clk 0:04:04]} 12... hxg5
{[%clk 0:04:13.6]} 13. Nxg5 {[%clk 0:04:01.2]} 13... Bf5 {[%clk 0:04:11.2]} 14.
Qa4+ {[%clk 0:03:50.6]} 14... Nc6 {[%clk 0:04:02.2]} 15. Qa3 {[%clk 0:03:42.9]}
15... Nh6 {[%clk 0:03:46.1]} 16. Bh3 {[%clk 0:03:35.3]} 16... Ng4 {[%clk
0:03:40.1]} 17. Bg2 {[%clk 0:03:29.4]} 17... Bxd3 {[%clk 0:03:34.7]} 18. Bxc6+
{[%clk 0:03:26.8]} 18... Qxc6 {[%clk 0:03:31]} 19. Qxd3 {[%clk 0:03:25.2]} 19...
Qxh1+ {[%clk 0:03:29.7]} 20. Kd2 {[%clk 0:03:21.7]} 0-1

[Event "Live Chess"]
[Site "Chess.com"]
[Date "2023.05.21"]
[Round "-"]
[White "Doge_Dandolo"]
[Black "Tiltador"]
[Result "1-0"]
[WhiteElo "1865"]
[BlackElo "845"]
[TimeControl "300"]
[EndTime "3:06:12 PDT"]
[Termination "Doge_Dandolo won on time"]

1. Nf3 {[%clk 0:04:57.5]} 1... Nf6 {[%clk 0:04:55.5]} 2. c4 {[%clk 0:04:55.9]}
2... e6 {[%clk 0:04:54.5]} 3. g3 {[%clk 0:04:54.4]} 3... c6 {[%clk 0:04:51.8]}
4. Bg2 {[%clk 0:04:53.4]} 4... d5 {[%clk 0:04:49.7]} 5. O-O {[%clk 0:04:52.2]}
5... Be7 {[%clk 0:04:45.1]} 6. d4 {[%clk 0:04:50.9]} 6... O-O {[%clk 0:04:43]}
7. Qc2 {[%clk 0:04:49.4]} 7... dxc4 {[%clk 0:04:33.1]} 8. Qxc4 {[%clk
0:04:47.5]} 8... Nd5 {[%clk 0:04:24.1]} 9. e4 {[%clk 0:04:42.2]} 9... Nf6 {[%clk
0:04:17]} 10. Re1 {[%clk 0:04:38.8]} 10... a6 {[%clk 0:03:59.1]} 11. Nc3 {[%clk
0:04:36.2]} 11... b5 {[%clk 0:03:57.7]} 12. Qe2 {[%clk 0:04:31.9]} 12... Bb7
{[%clk 0:03:44.6]} 13. Be3 {[%clk 0:04:27.9]} 13... Nbd7 {[%clk 0:03:42.6]} 14.
Qc2 {[%clk 0:04:25.2]} 14... Bb4 {[%clk 0:03:32.5]} 15. Red1 {[%clk 0:04:21.2]}
15... Bxc3 {[%clk 0:03:30.7]} 16. bxc3 {[%clk 0:04:14.3]} 16... Qc7 {[%clk
0:03:27.5]} 17. Bf4 {[%clk 0:04:09.9]} 17... Qc8 {[%clk 0:03:15.5]} 18. a4
{[%clk 0:04:06]} 18... bxa4 {[%clk 0:03:05.7]} 19. Rxa4 {[%clk 0:03:59.6]} 19...
Nb6 {[%clk 0:03:04.1]} 20. Ra5 {[%clk 0:03:55.7]} 20... Nc4 {[%clk 0:02:59.3]}
21. Rc5 {[%clk 0:03:51.8]} 21... Na3 {[%clk 0:02:46.9]} 22. Qa4 {[%clk
0:03:40.6]} 22... Nb5 {[%clk 0:02:40.5]} 23. Rb1 {[%clk 0:03:35.8]} 23... Qd7
{[%clk 0:02:14.1]} 24. Ne5 {[%clk 0:03:30.8]} 24... Qe7 {[%clk 0:02:04.4]} 25.
Qb4 {[%clk 0:03:15.4]} 25... a5 {[%clk 0:01:35.1]} 26. Qb2 {[%clk 0:03:06.6]}
26... a4 {[%clk 0:01:29.8]} 27. Qb4 {[%clk 0:03:03.8]} 27... a3 {[%clk 0:01:27]}
28. Rxb5 {[%clk 0:02:53.5]} 28... cxb5 {[%clk 0:01:20.2]} 29. Qxe7 {[%clk
0:02:51.8]} 29... a2 {[%clk 0:01:18.7]} 30. Ra1 {[%clk 0:02:48.2]} 30... Rfb8
{[%clk 0:01:09]} 31. Nd3 {[%clk 0:02:46.1]} 31... Bxe4 {[%clk 0:00:59.6]} 32.
Bxe4 {[%clk 0:02:44.1]} 32... Nxe4 {[%clk 0:00:57.7]} 33. Bxb8 {[%clk
0:02:40.7]} 33... Rxb8 {[%clk 0:00:54]} 34. Rxa2 {[%clk 0:02:38.5]} 34... Nxc3
{[%clk 0:00:50.4]} 35. Rb2 {[%clk 0:02:32.5]} 35... g6 {[%clk 0:00:45.2]} 36.
Ne5 {[%clk 0:02:25.2]} 36... Rf8 {[%clk 0:00:38.1]} 37. Qf6 {[%clk 0:02:23.1]}
37... h5 {[%clk 0:00:26.4]} 38. Nd3 {[%clk 0:02:04.5]} 38... Ne4 {[%clk
0:00:19.8]} 39. Qf4 {[%clk 0:02:01]} 39... Nc3 {[%clk 0:00:15.6]} 40. Qd2 {[%clk
0:01:54.2]} 40... Nd5 {[%clk 0:00:12.9]} 41. Rxb5 {[%clk 0:01:47.3]} 41... f5
{[%clk 0:00:08.8]} 42. Rb7 {[%clk 0:01:43]} 42... Rf7 {[%clk 0:00:06.3]} 43.
Rxf7 {[%clk 0:01:38.2]} 43... Kxf7 {[%clk 0:00:04.7]} 44. Ne5+ {[%clk
0:01:35.8]} 44... Kf6 {[%clk 0:00:02.7]} 45. h4 {[%clk 0:01:32.7]} 1-0